fUSD/lending_fUSD_20250112
["ID","MTS","AMOUNT","RATE_DAILY","PERIOD"]
[348588757,1736646636431,-500.0,9.985e-05,2]
[348588758,1736646636441,-500.0,9.985e-05,2]
[348588759,1736646636450,-505.22,9.985e-05,2]
[348588760,1736646636460,-500.0,9.985e-05,2]
[348588761,1736646636469,-500.0,9.985e-05,2]
[348588762,1736646636478,-1190.18,9.985e-05,2]
[348588763,1736646636487,-500.0,9.985e-05,2]
[348588764,1736646636497,-636.52,9.985e-05,2]
[348588765,1736646636507,-500.0,9.985e-05,2]
[348588766,1736646636516,-1783.93,9.985e-05,2]
[348588767,1736646636526,-204.00584821,9.985e-05,2]
[348588768,1736646636536,-500.0,9.985e-05,2]
[348588769,1736646636546,-500.0,9.985e-05,2]
[348588770,1736646636556,-500.0,9.985e-05,2]
[348588771,1736646636567,-500.0,9.985e-05,2]
[348588772,1736646636576,-500.0,9.985e-05,2]
[348588773,1736646636586,-1234.51,9.985e-05,2]
[348588774,1736646636595,-500.0,9.985e-05,2]
[348588775,1736646636606,-3383.28,9.985e-05,2]
[348588776,1736646636615,-500.0,9.985e-05,2]
[348588777,1736646636625,-500.0,9.985e-05,2]
[348588778,1736646636634,-857.04,9.986e-05,2]
[348588779,1736646636643,-523.41,9.986e-05,2]
[348588780,1736646636654,-407.34107176,9.986e-05,2]
[348588781,1736646636664,-500.0,9.986e-05,2]
[348588782,1736646636674,-500.0,9.986e-05,2]
[348588783,1736646636683,-500.0,9.986e-05,2]
[348588784,1736646636693,-500.0,9.986e-05,2]
[348588785,1736646636703,-500.0,9.986e-05,2]
[348588786,1736646636712,-500.0,9.986e-05,2]
[348588787,1736646636721,-879.6,9.986e-05,2]
[348588788,1736646636731,-500.0,9.986e-05,2]
[348588789,1736646636741,-561.39,9.986e-05,2]
[348588790,1736646636750,-587.57,9.986e-05,2]
[348588791,1736646636759,-500.0,9.986e-05,2]
[348588792,1736646636769,-663.26,9.986e-05,2]
[348588793,1736646636778,-500.0,9.986e-05,2]
[348588794,1736646636787,-500.0,9.986e-05,2]
[348588795,1736646636796,-535.99,9.986e-05,2]
[348588796,1736646636805,-500.0,9.986e-05,2]
[348588797,1736646636814,-500.0,9.986e-05,2]
[348588798,1736646636823,-546.17406495,9.986e-05,2]
[348588799,1736646636832,-500.0,9.986e-05,2]
[348588800,1736646636842,-500.0,9.986e-05,2]
[348588801,1736646636853,-500.0,9.986e-05,2]
[348588802,1736646636862,-500.0,9.986e-05,2]
[348588803,1736646636872,-500.0,9.986e-05,2]
[348588804,1736646636882,-500.0,9.986e-05,2]
[348588805,1736646636891,-500.0,9.986e-05,2]
[348588806,1736646636900,-500.0,9.986e-05,2]
[348588807,1736646636910,-687.7,9.986e-05,2]
[348588808,1736646636920,-500.0,9.986e-05,2]
[348588809,1736646636929,-697.87,9.986e-05,2]
[348588810,1736646636939,-500.0,9.986e-05,2]
[348588811,1736646636948,-500.0,9.986e-05,2]
[348588812,1736646636958,-766.23,9.986e-05,2]
[348588813,1736646636968,-500.0,9.986e-05,2]
[348588814,1736646636977,-500.0,9.986e-05,2]
[348588815,1736646636987,-516.18782808,9.986e-05,2]
[348588816,1736646636997,-500.0,9.986e-05,2]
[348588817,1736646637007,-500.0,9.986e-05,2]
[348588818,1736646637016,-500.0,9.986e-05,2]
[348588819,1736646637025,-802.69,9.986e-05,2]
[348588820,1736646637034,-500.0,9.986e-05,2]
[348588821,1736646637046,-844.54,9.986e-05,2]
[348588822,1736646637055,-500.0,9.986e-05,2]
[348588823,1736646637064,-680.19,9.986e-05,2]
[348588824,1736646637073,-602.22932612,9.986e-05,2]
[348588825,1736646637083,-500.0,9.986e-05,2]
[348588826,1736646637092,-500.0,9.986e-05,2]
[348588827,1736646637101,-632.17,9.986e-05,2]
[348588828,1736646637110,-500.0,9.986e-05,2]
[348588829,1736646637120,-500.0,9.986e-05,2]
[348588830,1736646637130,-752.76,9.986e-05,2]
[348588831,1736646637139,-500.0,9.986e-05,2]
[348588832,1736646637148,-500.0,9.986e-05,2]
[348588833,1736646637158,-500.0,9.986e-05,2]
[348588834,1736646637168,-500.0,9.986e-05,2]
[348588835,1736646637178,-868.85,9.986e-05,2]
[348588836,1736646637187,-638.03,9.986e-05,2]
[348588837,1736646637196,-500.0,9.986e-05,2]
[348588838,1736646637205,-500.0,9.986e-05,2]
[348588839,1736646637214,-500.0,9.986e-05,2]
[348588840,1736646637223,-801.62,9.986e-05,2]
[348588841,1736646637232,-510.27,9.986e-05,2]
[348588842,1736646637241,-500.0,9.986e-05,2]
[348588843,1736646637250,-500.0,9.986e-05,2]
[348588844,1736646637259,-500.0,9.986e-05,2]
[348588845,1736646637268,-500.0,9.986e-05,2]
[348588846,1736646637277,-500.0,9.986e-05,2]
[348588847,1736646637287,-500.0,9.986e-05,2]
[348588848,1736646637295,-1171.09,9.986e-05,2]
[348588849,1736646637304,-500.0,9.986e-05,2]
[348588850,1736646637313,-500.0,9.986e-05,2]
[348588851,1736646637323,-500.0,9.986e-05,2]
[348588852,1736646637332,-500.0,9.986e-05,2]
[348588853,1736646637341,-791.22,9.986e-05,2]
[348588854,1736646637350,-500.0,9.986e-05,2]
[348588855,1736646637359,-500.0,9.986e-05,2]
[348588856,1736646637369,-500.0,9.986e-05,2]
[348588857,1736646637378,-500.0,9.986e-05,2]
[348588858,1736646637387,-500.0,9.986e-05,2]
[348588859,1736646637395,-500.0,9.986e-05,2]
[348588860,1736646637404,-500.0,9.986e-05,2]
[348588861,1736646637416,-1350.15,9.986e-05,2]
[348588862,1736646637425,-607.86,9.986e-05,2]
[348588863,1736646637434,-500.0,9.986e-05,2]
[348588864,1736646637443,-500.0,9.986e-05,2]
[348588865,1736646637452,-500.0,9.986e-05,2]
[348588866,1736646637461,-1605.64,9.986e-05,2]
[348588867,1736646637470,-508.45,9.986e-05,2]
[348588868,1736646637479,-615.06,9.986e-05,2]
[348588869,1736646637489,-500.0,9.986e-05,2]
[348588870,1736646637498,-500.0,9.986e-05,2]
[348588871,1736646637508,-500.0,9.986e-05,2]
[348588872,1736646637517,-500.0,9.986e-05,2]
[348588873,1736646637526,-614.75,9.986e-05,2]
[348588874,1736646637535,-500.0,9.986e-05,2]
[348588875,1736646637544,-500.0,9.986e-05,2]
[348588876,1736646637553,-531.05,9.986e-05,2]
[348588877,1736646637563,-500.0,9.986e-05,2]
[348588878,1736646637572,-500.0,9.986e-05,2]
[348588879,1736646637581,-1267.86,9.986e-05,2]
[348588880,1736646637590,-500.0,9.986e-05,2]
[348588881,1736646637600,-1455.96,9.986e-05,2]
[348588882,1736646637610,-691.85,9.986e-05,2]
[348588883,1736646637619,-500.0,9.986e-05,2]
[348588884,1736646637629,-599.70400638,9.986e-05,2]
[348588885,1736646637638,-660.01,9.986e-05,2]
[348588886,1736646637647,-3639.44,9.986e-05,2]
[348588887,1736646637656,-500.0,9.986e-05,2]
[348588888,1736646637666,-3536.31,9.986e-05,2]
[348588889,1736646637675,-629.91,9.986e-05,2]
[348588890,1736646637684,-500.0,9.986e-05,2]
[348588891,1736646637694,-1922.42,9.986e-05,2]
[348588892,1736646637703,-500.0,9.986e-05,2]
[348588893,1736646637713,-1334.82,9.986e-05,2]
[348588894,1736646637722,-500.0,9.986e-05,2]
[348588895,1736646637731,-500.0,9.986e-05,2]
[348588896,1736646637741,-500.0,9.986e-05,2]
[348588897,1736646637750,-500.0,9.986e-05,2]
[348588898,1736646637759,-2045.07,9.986e-05,2]
[348588899,1736646637768,-612.66,9.986e-05,2]
[348588900,1736646637777,-500.0,9.986e-05,2]
[348588901,1736646637787,-2206.36,9.986e-05,2]
[348588902,1736646637796,-500.0,9.986e-05,2]
[348588903,1736646637805,-500.0,9.986e-05,2]
[348588904,1736646637814,-500.0,9.986e-05,2]
[348588905,1736646637823,-500.0,9.986e-05,2]
[348588906,1736646637832,-560.56,9.986e-05,2]
[348588907,1736646637841,-500.0,9.986e-05,2]
[348588908,1736646637850,-543.51,9.986e-05,2]
[348588909,1736646637860,-1159.98,9.987e-05,2]
[348588910,1736646637869,-1379.61,9.987e-05,2]
[348588911,1736646637878,-500.0,9.987e-05,2]
[348588912,1736646637888,-583.94,9.987e-05,2]
[348588913,1736646637897,-1912.33,9.987e-05,2]
[348588914,1736646637906,-669.24,9.987e-05,2]
[348588915,1736646637916,-669.81,9.987e-05,2]
[348588916,1736646637925,-500.0,9.987e-05,2]
[348588917,1736646637935,-500.0,9.987e-05,2]
[348588918,1736646637944,-933.73,9.987e-05,2]
[348588919,1736646637954,-500.0,9.987e-05,2]
[348588920,1736646637963,-1116.75,9.987e-05,2]
[348588921,1736646637972,-822.68,9.989e-05,2]
[348588922,1736646637981,-1179.57,9.989e-05,2]
[348588923,1736646637990,-1372.23,9.989e-05,2]
[348588924,1736646638000,-1634.18,9.989e-05,2]
[348588925,1736646638009,-2339.8,9.989e-05,2]
[348588926,1736646638019,-5956.83,9.989e-05,2]
[348588927,1736646638028,-1007.56,9.989e-05,2]
[348588928,1736646638037,-556.98,9.989e-05,2]
[348588929,1736646638050,-645.19,9.989e-05,2]
[348588930,1736646638059,-1940.88,9.989e-05,2]
[348588931,1736646638068,-500.0,9.989e-05,2]
[348588932,1736646638078,-662.45,9.989e-05,2]
[348588933,1736646638087,-852.34,9.989e-05,2]
[348588934,1736646638096,-1427.08,9.989e-05,2]
[348588936,1736646638105,-1000.0,9.989e-05,2]
[348588937,1736646638115,-609.71,9.989e-05,2]
[348588938,1736646638125,-500.0,9.989e-05,2]
[348588940,1736646638289,-1358.79,9.989e-05,2]
[348588941,1736646638299,-930.456,9.995e-05,2]
[348588942,1736646638309,-500.0,9.997e-05,2]
[348588943,1736646638318,-500.0,9.997e-05,2]
[348588944,1736646638327,-830.29,9.997e-05,2]
[348588945,1736646638336,-905.87,9.997e-05,2]
[348588946,1736646638345,-500.0,9.997e-05,2]
[348588947,1736646638354,-1125.44,9.997e-05,2]
[348588948,1736646638363,-1247.59,9.997e-05,2]
[348588949,1736646638372,-1575.0,9.998e-05,2]
[348588950,1736646638381,-948.28,9.998e-05,2]
[348588951,1736646638390,-2387.62,9.998e-05,2]
[348588952,1736646638400,-1436.0,9.998e-05,2]
[348588953,1736646638409,-9062.34445652,9.999e-05,2]
[348588959,1736646638807,-903.38703061,9.999e-05,2]
[348588960,1736646638819,-3427.08347967,9.999e-05,2]
[348588961,1736646638830,-61965.3008249,9.999e-05,2]
[348588962,1736646638841,-28510.4150784,9.999e-05,2]
[348588963,1736646638851,-150.34122139,9.999e-05,2]
[348588964,1736646638860,-500.0,9.999e-05,2]
[348588965,1736646638869,-610.0,0.0001,2]
[348588967,1736646638878,-680059.91877844,0.0001,2]
[348588969,1736646638890,-5433.45583817,0.0001,2]
[348588970,1736646639761,-189.27,9.143e-05,2]
[348588971,1736646639770,-1747.98,0.0001,2]
[348588972,1736646639781,-3264.13760739,0.0001,2]
[348588973,1736646639791,-1804.33875029,0.0001,2]
[348588974,1736646639830,-4518.1242895,0.0001,2]
[348588975,1736646639841,-976.2,0.0001,2]
[348588976,1736646639851,-392.94026559,0.0001,2]
[348588977,1736646639862,-1760.38094675,0.0001,2]
[348588983,1736646640565,-91908.57624198,0.0001,2]
[348588984,1736646640708,-1057.51905768,0.0001,2]
[348588985,1736646640719,-3050.24560985,0.0001,2]
[348588986,1736646640731,-821.53000001,0.0001,2]
[348588987,1736646640742,-8556.56,0.0001,2]
[348588994,1736646643298,-541.34970936,9.983e-05,2]
[348588995,1736646643310,-610.00029064,9.983e-05,2]
[348588996,1736646643320,-500.0,9.983e-05,2]
[348588997,1736646643331,-500.0,9.983e-05,2]
[348588998,1736646643341,-500.0,9.986e-05,2]
[348588999,1736646643351,-8786.1422164,0.0001,2]
[348589000,1736646643460,-74164.38696688,0.0001,2]
[348589001,1736646643472,-1817.67063,0.0001,2]
[348589002,1736646643483,-1765.7713395,0.0001,2]
[348589003,1736646643639,-681.30702189,0.0001,2]
[348589006,1736646646423,-302.40139359,9.986e-05,2]
[348589007,1736646646435,-260.01800068,9.986e-05,2]
[348589008,1736646646449,-549.22060573,9.986e-05,2]
[348589009,1736646646458,-149.60032748,9.986e-05,2]
[348589010,1736646646471,-350.39967252,9.986e-05,2]
[348589011,1736646646480,-126.16658814,0.0001,2]
[348589012,1736646646594,-519.21786134,0.0001,2]
[348589013,1736646646606,-354821.20150519,0.0001,2]
[348589015,1736646804053,587.84,8.219e-05,2]
[348589016,1736646906164,2058.43,8.5e-05,2]
[348589017,1736646960396,172.38,8.5e-05,2]
[348589018,1736646991841,692.75,8.5e-05,2]
[348589020,1736647375022,250.0,8.51e-05,2]
[348589021,1736647401513,1000.0,8.498e-05,2]
[348589027,1736647574130,1500.0,8.524e-05,2]
[348589034,1736647741113,152.74,8.502e-05,2]
[348589036,1736647748294,250.0,8.513e-05,2]
[348589039,1736647832551,-222.09,8.546e-05,2]
[348589040,1736647832564,-386.9488,9.072e-05,2]
[348589042,1736647832576,-300.0,9.137e-05,2]
[348589043,1736647832587,-837.62261464,9.138e-05,2]
[348589044,1736647832763,-5826.7210703,9.138e-05,2]
[348589045,1736647832778,-498.92723845,9.138e-05,2]
[348589046,1736647832792,-1016.66907661,9.138e-05,2]
[348589047,1736647832804,-151.25,9.138e-05,2]
[348589048,1736647832817,-616.6609234,9.141e-05,2]
[348589049,1736647832831,-269.24235348,9.141e-05,2]
[348589050,1736647832846,-581.68050782,9.141e-05,2]
[348589051,1736647832860,-311.97029576,9.141e-05,2]
[348589052,1736647832874,-4446.40001196,9.141e-05,2]
[348589053,1736647833125,-1953.98590758,9.141e-05,2]
[348589054,1736647833138,-146.01409242,9.143e-05,2]
[348589055,1736647833154,-2111.93158524,9.143e-05,2]
[348589056,1736647833169,-4090.01649661,9.143e-05,2]
[348589057,1736647833184,-920.76715178,9.143e-05,2]
[348589058,1736647833200,-911.21067395,9.143e-05,2]
[348589060,1736647833214,-312.06705209,9.146e-05,2]
[348589063,1736647833234,-7867.87294791,9.146e-05,2]
[348589065,1736647833247,-8179.94,9.148e-05,2]
[348589067,1736647833261,-150.0,9.149e-05,2]
[348589070,1736647833274,-442.89,9.15e-05,2]
[348589072,1736647833286,-782.22,9.15e-05,2]
[348589074,1736647833297,-437.93,9.15e-05,2]
[348589076,1736647833308,-437.93,9.15e-05,2]
[348589078,1736647833318,-8179.94,9.15e-05,2]
[348589080,1736647833327,-1512.42,9.15e-05,2]
[348589082,1736647833337,-999.99,9.15e-05,2]
[348589084,1736647833347,-477.95,9.15e-05,2]
[348589086,1736647833357,-150.99,9.15e-05,2]
[348589088,1736647833367,-299.99,9.15e-05,2]
[348589090,1736647833376,-2991.95,9.15e-05,2]
[348589092,1736647833385,-9999.99,9.15e-05,2]
[348589094,1736647833395,-8179.94,9.153e-05,2]
[348589096,1736647833406,-8179.94,9.155e-05,2]
[348589111,1736647833743,-8179.94,9.158e-05,2]
[348589112,1736647833763,-8179.94,9.16e-05,2]
[348589113,1736647833773,-8179.94,9.162e-05,2]
[348589114,1736647833783,-8179.94,9.165e-05,2]
[348589115,1736647833792,-8179.94,9.167e-05,2]
[348589116,1736647833801,-8179.94,9.17e-05,2]
[348589117,1736647833811,-8179.94,9.172e-05,2]
[348589118,1736647833820,-8179.94,9.175e-05,2]
[348589119,1736647833829,-8179.94,9.177e-05,2]
[348589120,1736647833839,-8179.94,9.179e-05,2]
[348589121,1736647833849,-8179.94,9.182e-05,2]
[348589122,1736647833859,-8179.94,9.184e-05,2]
[348589123,1736647833868,-171.203,9.5e-05,2]
[348589124,1736647833877,-1000.0,9.56e-05,2]
[348589125,1736647833887,-692.75,9.563e-05,2]
[348589126,1736647833897,-4552.0,9.593e-05,2]
[348589127,1736647833907,-150.0,9.731e-05,2]
[348589128,1736647833917,-150.0,9.756e-05,2]
[348589129,1736647833927,-150.0,9.764e-05,2]
[348589130,1736647833937,-150.0,9.778e-05,2]
[348589131,1736647833946,-164.94521919,9.79e-05,2]
[348589132,1736647833956,-1000.0,9.881e-05,2]
[348589133,1736647833966,-150.0,9.882e-05,2]
[348589134,1736647833977,-5000.0,9.885e-05,2]
[348589135,1736647833986,-150.0,9.908e-05,2]
[348589136,1736647833996,-150.0,9.912e-05,2]
[348589137,1736647834006,-150.0,9.93e-05,2]
[348589138,1736647834016,-150.0,9.936e-05,2]
[348589139,1736647834025,-502.71765678,9.973e-05,2]
[348589140,1736647834035,-500.0,9.98e-05,2]
[348589141,1736647834045,-858.13,9.98e-05,2]
[348589142,1736647834054,-1195.92,9.981e-05,2]
[348589143,1736647834064,-850.59,9.981e-05,2]
[348589144,1736647834074,-519.74,9.981e-05,2]
[348589145,1736647834083,-1565.51,9.981e-05,2]
[348589146,1736647834093,-2087.86,9.981e-05,2]
[348589147,1736647834103,-861.71,9.981e-05,2]
[348589148,1736647834112,-500.0,9.981e-05,2]
[348589149,1736647834122,-2994.29,9.981e-05,2]
[348589150,1736647834131,-1209.7,9.981e-05,2]
[348589151,1736647834141,-1009.36,9.981e-05,2]
[348589152,1736647834151,-2543.66,9.981e-05,2]
[348589153,1736647834161,-7112.14,9.981e-05,2]
[348589154,1736647834170,-500.0,9.981e-05,2]
[348589155,1736647834180,-689.25,9.981e-05,2]
[348589156,1736647834190,-500.0,9.981e-05,2]
[348589157,1736647834200,-1023.02,9.981e-05,2]
[348589158,1736647834210,-1515.46,9.981e-05,2]
[348589159,1736647834222,-2096.59,9.981e-05,2]
[348589160,1736647834232,-500.0,9.981e-05,2]
[348589161,1736647834242,-500.0,9.981e-05,2]
[348589162,1736647834252,-2186.14,9.981e-05,2]
[348589163,1736647834261,-3934.54,9.981e-05,2]
[348589164,1736647834271,-2967.89,9.981e-05,2]
[348589165,1736647834280,-2629.74,9.981e-05,2]
[348589166,1736647834290,-1193.46,9.981e-05,2]
[348589167,1736647834300,-1821.37,9.981e-05,2]
[348589168,1736647834310,-637.37,9.981e-05,2]
[348589169,1736647834320,-500.0,9.981e-05,2]
[348589170,1736647834330,-1087.49,9.981e-05,2]
[348589171,1736647834339,-1500.86,9.981e-05,2]
[348589172,1736647834348,-1783.52,9.981e-05,2]
[348589173,1736647834358,-3009.49,9.981e-05,2]
[348589174,1736647834368,-1078.44,9.981e-05,2]
[348589175,1736647834378,-500.0,9.981e-05,2]
[348589176,1736647834387,-1249.25,9.981e-05,2]
[348589177,1736647834396,-1224.937535,9.981e-05,2]
[348589178,1736647834406,-500.0,9.981e-05,2]
[348589179,1736647834415,-1033.17,9.981e-05,2]
[348589180,1736647834424,-500.0,9.981e-05,2]
[348589181,1736647834434,-2965.9,9.981e-05,2]
[348589182,1736647834444,-500.0,9.982e-05,2]
[348589183,1736647834453,-500.0,9.982e-05,2]
[348589184,1736647834463,-500.0,9.982e-05,2]
[348589185,1736647834473,-500.0,9.982e-05,2]
[348589186,1736647834483,-548.31,9.982e-05,2]
[348589187,1736647834492,-500.0,9.982e-05,2]
[348589188,1736647834502,-500.0,9.982e-05,2]
[348589189,1736647834511,-500.0,9.982e-05,2]
[348589190,1736647834521,-500.0,9.982e-05,2]
[348589191,1736647834530,-500.0,9.982e-05,2]
[348589192,1736647834540,-505.22176249,9.982e-05,2]
[348589193,1736647834549,-500.0,9.982e-05,2]
[348589194,1736647834559,-500.0,9.982e-05,2]
[348589195,1736647834568,-500.0,9.982e-05,2]
[348589196,1736647834577,-500.0,9.982e-05,2]
[348589197,1736647834587,-500.0,9.982e-05,2]
[348589198,1736647834597,-500.0,9.982e-05,2]
[348589199,1736647834607,-500.0,9.982e-05,2]
[348589200,1736647834616,-500.0,9.982e-05,2]
[348589201,1736647834626,-503.49329603,9.982e-05,2]
[348589202,1736647834638,-500.0,9.982e-05,2]
[348589203,1736647834648,-500.0,9.982e-05,2]
[348589204,1736647834657,-878.91,9.982e-05,2]
[348589205,1736647834667,-500.0,9.982e-05,2]
[348589206,1736647834677,-500.0,9.982e-05,2]
[348589207,1736647834686,-500.0,9.982e-05,2]
[348589208,1736647834695,-503.2821754,9.982e-05,2]
[348589209,1736647834705,-500.0,9.982e-05,2]
[348589210,1736647834715,-594.84,9.982e-05,2]
[348589211,1736647834725,-500.0,9.982e-05,2]
[348589212,1736647834735,-669.85,9.982e-05,2]
[348589213,1736647834744,-515.3,9.982e-05,2]
[348589214,1736647834753,-500.0,9.982e-05,2]
[348589215,1736647834763,-500.0,9.982e-05,2]
[348589216,1736647834773,-348.53518856,9.982e-05,2]
[348589217,1736647834782,-507.38420564,9.982e-05,2]
[348589218,1736647834791,-500.0,9.982e-05,2]
[348589219,1736647834801,-500.0,9.982e-05,2]
[348589220,1736647834810,-239.40002063,9.982e-05,2]
[348589221,1736647834819,-500.0,9.982e-05,2]
[348589222,1736647834829,-500.0,9.982e-05,2]
[348589223,1736647834839,-500.0,9.982e-05,2]
[348589224,1736647834848,-500.0,9.982e-05,2]
[348589225,1736647834857,-500.0,9.982e-05,2]
[348589226,1736647834867,-500.0,9.982e-05,2]
[348589227,1736647834876,-484.15494222,9.982e-05,2]
[348589228,1736647834887,-502.41189559,9.982e-05,2]
[348589229,1736647834896,-500.0,9.982e-05,2]
[348589230,1736647834905,-500.0,9.982e-05,2]
[348589231,1736647834915,-500.0,9.982e-05,2]
[348589232,1736647834924,-500.0,9.982e-05,2]
[348589233,1736647834934,-500.0,9.982e-05,2]
[348589234,1736647834943,-500.0,9.982e-05,2]
[348589235,1736647834952,-500.0,9.982e-05,2]
[348589236,1736647834962,-504.57245382,9.982e-05,2]
[348589237,1736647834972,-700.24,9.982e-05,2]
[348589238,1736647834982,-500.0,9.982e-05,2]
[348589239,1736647834992,-495.35973963,9.982e-05,2]
[348589240,1736647835003,-500.0,9.982e-05,2]
[348589241,1736647835013,-690.04,9.982e-05,2]
[348589242,1736647835022,-500.0,9.982e-05,2]
[348589243,1736647835032,-500.0,9.982e-05,2]
[348589244,1736647835041,-500.0,9.982e-05,2]
[348589245,1736647835050,-500.0,9.982e-05,2]
[348589246,1736647835060,-500.0,9.982e-05,2]
[348589247,1736647835070,-500.0,9.982e-05,2]
[348589248,1736647835079,-540.62776063,9.982e-05,2]
[348589249,1736647835088,-500.0,9.982e-05,2]
[348589250,1736647835098,-500.0,9.982e-05,2]
[348589251,1736647835107,-500.0,9.982e-05,2]
[348589252,1736647835117,-500.0,9.982e-05,2]
[348589253,1736647835126,-500.0,9.982e-05,2]
[348589254,1736647835135,-500.0,9.982e-05,2]
[348589255,1736647835144,-500.0,9.982e-05,2]
[348589256,1736647835153,-500.0,9.982e-05,2]
[348589257,1736647835163,-357.22978089,9.982e-05,2]
[348589258,1736647835172,-407.04459141,9.982e-05,2]
[348589259,1736647835181,-506.08270845,9.982e-05,2]
[348589260,1736647835189,-500.0,9.982e-05,2]
[348589261,1736647835199,-500.0,9.982e-05,2]
[348589262,1736647835209,-500.0,9.982e-05,2]
[348589263,1736647835220,-500.0,9.982e-05,2]
[348589264,1736647835229,-500.0,9.982e-05,2]
[348589265,1736647835237,-500.0,9.982e-05,2]
[348589266,1736647835247,-636.93,9.982e-05,2]
[348589267,1736647835256,-500.0,9.982e-05,2]
[348589268,1736647835267,-500.0,9.982e-05,2]
[348589269,1736647835276,-500.0,9.982e-05,2]
[348589270,1736647835285,-500.0,9.982e-05,2]
[348589271,1736647835295,-500.0,9.982e-05,2]
[348589272,1736647835306,-500.0,9.982e-05,2]
[348589273,1736647835315,-500.0,9.982e-05,2]
[348589274,1736647835325,-642.97,9.982e-05,2]
[348589275,1736647835335,-500.0,9.982e-05,2]
[348589276,1736647835344,-500.0,9.982e-05,2]
[348589277,1736647835353,-500.0,9.982e-05,2]
[348589278,1736647835362,-500.0,9.982e-05,2]
[348589279,1736647835372,-500.0,9.982e-05,2]
[348589280,1736647835381,-500.0,9.982e-05,2]
[348589281,1736647835390,-801.4,9.982e-05,2]
[348589282,1736647835399,-851.48,9.982e-05,2]
[348589283,1736647835409,-500.0,9.982e-05,2]
[348589284,1736647835418,-500.0,9.982e-05,2]
[348589285,1736647835427,-500.0,9.982e-05,2]
[348589286,1736647835437,-500.0,9.982e-05,2]
[348589287,1736647835446,-500.0,9.982e-05,2]
[348589288,1736647835455,-500.0,9.982e-05,2]
[348589289,1736647835465,-500.0,9.982e-05,2]
[348589290,1736647835475,-791.93,9.982e-05,2]
[348589291,1736647835485,-500.0,9.982e-05,2]
[348589292,1736647835494,-500.0,9.982e-05,2]
[348589293,1736647835504,-500.0,9.982e-05,2]
[348589294,1736647835513,-500.0,9.982e-05,2]
[348589295,1736647835523,-500.0,9.982e-05,2]
[348589296,1736647835532,-500.0,9.982e-05,2]
[348589297,1736647835542,-500.0,9.982e-05,2]
[348589298,1736647835551,-500.0,9.982e-05,2]
[348589299,1736647835560,-500.0,9.982e-05,2]
[348589300,1736647835569,-500.0,9.982e-05,2]
[348589301,1736647835578,-500.0,9.982e-05,2]
[348589302,1736647835588,-500.0,9.982e-05,2]
[348589303,1736647835597,-500.0,9.982e-05,2]
[348589304,1736647835607,-500.0,9.982e-05,2]
[348589305,1736647835617,-500.0,9.982e-05,2]
[348589306,1736647835633,-613.65,9.982e-05,2]
[348589307,1736647835644,-509.66189983,9.982e-05,2]
[348589308,1736647835654,-500.0,9.982e-05,2]
[348589309,1736647835663,-500.0,9.982e-05,2]
[348589310,1736647835678,-500.0,9.982e-05,2]
[348589311,1736647835689,-500.0,9.982e-05,2]
[348589312,1736647835698,-500.0,9.982e-05,2]
[348589313,1736647835709,-311.86935938,9.982e-05,2]
[348589314,1736647835720,-500.0,9.982e-05,2]
[348589315,1736647835729,-517.43,9.982e-05,2]
[348589316,1736647835739,-500.0,9.982e-05,2]
[348589317,1736647835748,-506.17662867,9.982e-05,2]
[348589318,1736647835757,-500.0,9.982e-05,2]
[348589319,1736647835767,-500.0,9.982e-05,2]
[348589320,1736647835776,-622.37,9.982e-05,2]
[348589321,1736647835786,-500.0,9.982e-05,2]
[348589322,1736647835796,-381.52794962,9.982e-05,2]
[348589323,1736647835805,-500.0,9.982e-05,2]
[348589324,1736647835815,-505.34362094,9.982e-05,2]
[348589325,1736647835825,-500.0,9.982e-05,2]
[348589326,1736647835835,-500.0,9.982e-05,2]
[348589327,1736647835844,-500.0,9.982e-05,2]
[348589328,1736647835853,-500.0,9.982e-05,2]
[348589329,1736647835862,-500.0,9.982e-05,2]